fUSD/lending_fUSD_20260615
["ID","MTS","AMOUNT","RATE_DAILY","PERIOD"]
[425112328,1781521847000,-500.0,0.00014872,2]
[425112330,1781521847000,-151.0,0.00014872,2]
[425112331,1781521847000,-500.0,0.00014872,2]
[425112324,1781521847000,-500.0,0.00014872,2]
[425112323,1781521847000,-500.0,0.00014872,2]
[425112326,1781521847000,-500.0,0.00014872,2]
[425112322,1781521847000,-500.0,0.00014872,2]
[425112314,1781521847000,-500.0,0.00014872,2]
[425112309,1781521847000,-500.0,0.00014872,2]
[425112277,1781521847000,-151.0,0.00014872,2]
[425112307,1781521847000,-500.0,0.00014872,2]
[425112279,1781521847000,-500.0,0.00014872,2]
[425112278,1781521847000,-151.0,0.00014872,2]
[425112280,1781521847000,-500.0,0.00014872,2]
[425112281,1781521847000,-500.0,0.00014872,2]
[425112283,1781521847000,-500.0,0.00014872,2]
[425112284,1781521847000,-500.0,0.00014872,2]
[425112282,1781521847000,-500.0,0.00014872,2]
[425112287,1781521847000,-500.0,0.00014872,2]
[425112288,1781521847000,-500.0,0.00014872,2]
[425112325,1781521847000,-500.0,0.00014872,2]
[425112286,1781521847000,-500.0,0.00014872,2]
[425112285,1781521847000,-500.0,0.00014872,2]
[425112290,1781521847000,-500.0,0.00014872,2]
[425112298,1781521847000,-500.0,0.00014872,2]
[425112299,1781521847000,-500.0,0.00014872,2]
[425112289,1781521847000,-500.0,0.00014872,2]
[425112294,1781521847000,-500.0,0.00014872,2]
[425112291,1781521847000,-500.0,0.00014872,2]
[425112292,1781521847000,-500.0,0.00014872,2]
[425112297,1781521847000,-500.0,0.00014872,2]
[425112296,1781521847000,-500.0,0.00014872,2]
[425112293,1781521847000,-500.0,0.00014872,2]
[425112295,1781521847000,-500.0,0.00014872,2]
[425112306,1781521847000,-500.0,0.00014872,2]
[425112300,1781521847000,-500.0,0.00014872,2]
[425112308,1781521847000,-500.0,0.00014872,2]
[425112327,1781521847000,-500.0,0.00014872,2]
[425112374,1781521847000,-200.0,0.000149,2]
[425112343,1781521847000,-151.0,0.00014872,2]
[425112361,1781521847000,-500.0,0.00014899,2]
[425112358,1781521847000,-151.0,0.00014897,2]
[425112363,1781521847000,-500.0,0.00014899,2]
[425112367,1781521847000,-500.0,0.00014899,2]
[425112382,1781521847000,-588.85820092,0.000149,2]
[425112378,1781521847000,-200.0,0.000149,2]
[425112381,1781521847000,-210.01209059,0.000149,2]
[425112377,1781521847000,-1411.85030006,0.000149,2]
[425112376,1781521847000,-200.0,0.000149,2]
[425112375,1781521847000,-10870.01538874,0.000149,2]
[425112379,1781521847000,-2506.61691948,0.000149,2]
[425112364,1781521847000,-513.36098402,0.00014899,2]
[425112380,1781521847000,-837.56926021,0.000149,2]
[425112372,1781521847000,-167.83801069,0.000149,2]
[425112383,1781521847000,-487.97370602,0.000149,2]
[425112385,1781521847000,-500.0,0.00014902,2]
[425112386,1781521847000,-745.15,0.00014902,2]
[425112384,1781521847000,-1265.62,0.00014902,2]
[425112387,1781521847000,-500.0,0.00014902,2]
[425112388,1781521847000,-9521.70261235,0.00014903,2]
[425112389,1781521847000,-291.7823094,0.00014908,2]
[425112390,1781521847000,-151.0,0.00014916,2]
[425112391,1781521847000,-550.15,0.00014918,2]
[425112334,1781521847000,-500.0,0.00014872,2]
[425112371,1781521847000,-151.0,0.000149,2]
[425112370,1781521847000,-500.0,0.00014899,4]
[425112373,1781521847000,-7197.0,0.000149,5]
[425112366,1781521847000,-500.0,0.00014899,2]
[425112368,1781521847000,-500.0,0.00014899,2]
[425112340,1781521847000,-500.0,0.00014872,2]
[425112337,1781521847000,-151.0,0.00014872,2]
[425112335,1781521847000,-500.0,0.00014872,2]
[425112339,1781521847000,-500.0,0.00014872,2]
[425112342,1781521847000,-500.0,0.00014872,2]
[425112341,1781521847000,-500.0,0.00014872,2]
[425112338,1781521847000,-500.0,0.00014872,2]
[425112353,1781521847000,-151.0,0.00014872,2]
[425112344,1781521847000,-500.0,0.00014872,2]
[425112352,1781521847000,-446.46686,0.00014872,2]
[425112355,1781521847000,-200.0,0.00014879,2]
[425112336,1781521847000,-500.0,0.00014872,2]
[425112332,1781521847000,-500.0,0.00014872,2]
[425112360,1781521847000,-151.0,0.00014897,2]
[425112354,1781521847000,-151.0,0.00014872,2]
[425112365,1781521847000,-501.81705989,0.00014899,2]
[425112369,1781521847000,-500.0,0.00014899,3]
[425112359,1781521847000,-151.0,0.00014897,2]
[425112348,1781521847000,-151.0,0.00014872,2]
[425112362,1781521847000,-500.0,0.00014899,2]
[425112350,1781521847000,-500.0,0.00014872,2]
[425112345,1781521847000,-162.60446,0.00014872,2]
[425112357,1781521847000,-500.0,0.00014885,2]
[425112356,1781521847000,-550.15,0.00014881,2]
[425112347,1781521847000,-151.0,0.00014872,2]
[425112442,1781521848000,-151.0,0.00014997,2]
[425112422,1781521848000,-151.0,0.00014989,2]
[425112427,1781521848000,-151.0,0.00014989,2]
[425112425,1781521848000,-151.0,0.00014989,2]
[425112423,1781521848000,-151.0,0.00014989,2]
[425112428,1781521848000,-151.0,0.00014989,2]
[425112424,1781521848000,-151.0,0.00014989,2]
[425112426,1781521848000,-151.0,0.00014989,2]
[425112441,1781521848000,-277.01729798,0.0001499,2]
[425112431,1781521848000,-151.0,0.00014989,2]
[425112430,1781521848000,-151.0,0.00014989,2]
[425112447,1781521848000,-500.0,0.00014999,6]
[425112435,1781521848000,-1058.597648,0.00014989,2]
[425112434,1781521848000,-2562.18806,0.00014989,2]
[425112436,1781521848000,-2562.18806,0.00014989,2]
[425112432,1781521848000,-2562.18806,0.00014989,2]
[425112437,1781521848000,-1058.597648,0.00014989,2]
[425112438,1781521848000,-2562.18806,0.00014989,2]
[425112439,1781521848000,-1058.597648,0.00014989,2]
[425112440,1781521848000,-277.01729798,0.0001499,2]
[425112445,1781521848000,-7159.0,0.00014999,5]
[425112444,1781521848000,-5881.10116769,0.00014998,2]
[425112449,1781521848000,-500.0,0.00014999,8]
[425112420,1781521848000,-151.0,0.00014989,2]
[425112433,1781521848000,-1058.597648,0.00014989,2]
[425112418,1781521848000,-186.245082,0.00014989,2]
[425112392,1781521848000,-231.49918463,0.00014918,5]
[425112419,1781521848000,-151.0,0.00014989,2]
[425112393,1781521848000,-151.0,0.00014919,2]
[425112450,1781521848000,-500.0,0.00014999,9]
[425112394,1781521848000,-306.04,0.00014921,2]
[425112398,1781521848000,-350.0,0.00014959,2]
[425112396,1781521848000,-550.15,0.00014954,2]
[425112399,1781521848000,-1198.0,0.00014959,2]
[425112395,1781521848000,-306.03,0.00014922,2]
[425112397,1781521848000,-500.0,0.00014958,2]
[425112400,1781521848000,-63528.0,0.00014959,2]
[425112404,1781521848000,-745.15,0.00014988,2]
[425112401,1781521848000,-454.0,0.00014986,2]
[425112403,1781521848000,-500.0,0.00014988,2]
[425112429,1781521848000,-151.0,0.00014989,2]
[425112402,1781521848000,-1265.62,0.00014988,2]
[425112417,1781521848000,-151.0,0.00014989,2]
[425112405,1781521848000,-550.15,0.00014988,2]
[425112416,1781521848000,-151.0,0.00014989,2]
[425112413,1781521848000,-151.0,0.00014989,2]
[425112407,1781521848000,-151.0,0.00014989,2]
[425112415,1781521848000,-151.0,0.00014989,2]
[425112411,1781521848000,-222.064043,0.00014989,2]
[425112409,1781521848000,-222.064043,0.00014989,2]
[425112412,1781521848000,-222.064043,0.00014989,2]
[425112414,1781521848000,-151.789558,0.00014989,2]
[425112408,1781521848000,-151.0,0.00014989,2]
[425112410,1781521848000,-222.064043,0.00014989,2]
[425112406,1781521848000,-71529.46044581,0.00014989,2]
[425112448,1781521848000,-500.0,0.00014999,7]
[425112421,1781521848000,-151.0,0.00014989,2]
[425112446,1781521848000,-1126.45563084,0.00014999,5]
[425112481,1781521848000,-745.15,0.00014999,2]
[425112478,1781521848000,-745.15,0.00014999,2]
[425112480,1781521848000,-745.15,0.00014999,2]
[425112487,1781521848000,-745.15,0.00014999,2]
[425112483,1781521848000,-745.15,0.00014999,2]
[425112484,1781521848000,-745.15,0.00014999,2]
[425112485,1781521848000,-745.15,0.00014999,2]
[425112488,1781521848000,-745.15,0.00014999,2]
[425112486,1781521848000,-745.15,0.00014999,2]
[425112489,1781521848000,-745.30249668,0.00014999,2]
[425112491,1781521848000,-500.0,0.00014999,2]
[425112492,1781521848000,-500.0,0.00014999,2]
[425112495,1781521848000,-500.0,0.00014999,2]
[425112498,1781521848000,-500.0,0.00014999,2]
[425112493,1781521848000,-500.0,0.00014999,2]
[425112497,1781521848000,-500.0,0.00014999,2]
[425112496,1781521848000,-500.0,0.00014999,2]
[425112494,1781521848000,-500.0,0.00014999,2]
[425112500,1781521848000,-500.0,0.00014999,2]
[425112502,1781521848000,-500.0,0.00014999,2]
[425112499,1781521848000,-500.0,0.00014999,2]
[425112501,1781521848000,-500.0,0.00014999,2]
[425112504,1781521848000,-500.0,0.00014999,2]
[425112503,1781521848000,-500.0,0.00014999,2]
[425112505,1781521848000,-500.0,0.00014999,2]
[425112482,1781521848000,-745.15,0.00014999,2]
[425112479,1781521848000,-745.15,0.00014999,2]
[425112490,1781521848000,-500.0,0.00014999,2]
[425112475,1781521848000,-745.15,0.00014999,2]
[425112452,1781521848000,-500.0,0.00014999,11]
[425112476,1781521848000,-745.15,0.00014999,2]
[425112453,1781521848000,-500.0,0.00014999,12]
[425112465,1781521848000,-1265.62,0.00014999,2]
[425112459,1781521848000,-1265.62,0.00014999,2]
[425112455,1781521848000,-500.0,0.00014999,14]
[425112457,1781521848000,-1265.62,0.00014999,2]
[425112458,1781521848000,-1265.62,0.00014999,2]
[425112456,1781521848000,-420.97324374,0.00014999,5]
[425112454,1781521848000,-500.0,0.00014999,13]
[425112461,1781521848000,-1265.62,0.00014999,2]
[425112460,1781521848000,-1265.62,0.00014999,2]
[425112463,1781521848000,-1265.62,0.00014999,2]
[425112451,1781521848000,-500.0,0.00014999,10]
[425112462,1781521848000,-1265.62,0.00014999,2]
[425112464,1781521848000,-1265.62,0.00014999,2]
[425112469,1781521848000,-1265.62,0.00014999,2]
[425112473,1781521848000,-500.0,0.00014999,2]
[425112477,1781521848000,-745.15,0.00014999,2]
[425112470,1781521848000,-1265.62,0.00014999,2]
[425112467,1781521848000,-1265.62,0.00014999,2]
[425112443,1781521848000,-500.0,0.00014998,5]
[425112471,1781521848000,-1265.62,0.00014999,2]
[425112472,1781521848000,-1265.66730678,0.00014999,2]
[425112466,1781521848000,-1265.62,0.00014999,2]
[425112468,1781521848000,-1265.62,0.00014999,2]
[425112474,1781521848000,-745.15,0.00014999,2]
[425112509,1781521849000,-500.0,0.00014999,2]
[425112508,1781521849000,-500.0,0.00014999,2]
[425112506,1781521849000,-500.0,0.00014999,2]
[425112507,1781521849000,-500.0,0.00014999,2]
[425112510,1781521849000,-500.0,0.00014999,2]
[425112511,1781521849000,-500.0,0.00014999,2]
[425112512,1781521849000,-3000.0,0.00014999,2]
[425112514,1781521849000,-500.0,0.00014999,2]
[425112513,1781521849000,-500.0,0.00014999,2]
[425112518,1781521849000,-500.0,0.00014999,2]
[425112516,1781521849000,-500.0,0.00014999,2]
[425112515,1781521849000,-500.0,0.00014999,2]
[425112520,1781521849000,-300.0,0.00014999,2]
[425112522,1781521849000,-300.0,0.00014999,2]
[425112521,1781521849000,-300.0,0.00014999,2]
[425112525,1781521849000,-236193.15366011,0.00015,2]
[425112523,1781521849000,-300.0,0.00014999,2]
[425112524,1781521849000,-300.0,0.00014999,2]
[425112526,1781521849000,-2040.62817958,0.00015,2]
[425112517,1781521849000,-500.0,0.00014999,2]
[425112519,1781521849000,-289.31670044,0.00014999,2]
[425112530,1781521850000,-788.38535861,0.00015,2]
[425112528,1781521850000,-10785.37941399,0.00015,2]
[425112531,1781521850000,-20404.7642139,0.00015,2]
[425112527,1781521850000,-130.67345675,0.00015,2]
[425112532,1781521850000,-790.74458899,0.00015,2]
[425112533,1781521850000,-879.00378126,0.00015,2]
[425112529,1781521850000,-10039.86269992,0.00015,2]
[425112534,1781521850000,-3969.05535536,0.00015,2]
[425112535,1781521851000,-49295.58047749,0.00015,2]
[425112536,1781521864000,5485.0,0.000104,5]
[425112542,1781522374000,2500.0,0.00012859,10]
[425112543,1781522445000,963.0,0.000104,5]
[425112544,1781522574000,-166.66,0.00011894,2]
[425112546,1781522629000,-166.66,0.00012145,2]
[425112547,1781522682000,-166.66,0.00012395,2]
[425112548,1781522735000,-1994.3,0.00012351,2]
[425112549,1781522787000,-999.54855,0.00012365,2]
[425112552,1781522841000,-200.0,0.00012273,2]
[425112553,1781522895000,-150.0,0.00012292,2]
[425112554,1781522948000,-500.0,0.00012292,2]
[425112555,1781523001000,-1613.0535,0.00012185,2]
[425112556,1781523018000,-386.9465,0.00012185,2]
[425112558,1781523026000,1123.0,0.000104,5]
[425112557,1781523026000,490.0,0.000104,5]
[425112592,1781523032000,-207.39371674,0.00012828,2]
[425112590,1781523032000,-500.0,0.00012828,2]
[425112588,1781523032000,-228.86,0.0001266,2]
[425112591,1781523032000,-209.9722684,0.00012828,2]
[425112593,1781523032000,-500.0,0.00012828,2]
[425112586,1781523032000,-2732.48,0.00012564,2]
[425112594,1781523032000,-500.0,0.00012828,2]
[425112589,1781523032000,-541.8343897,0.00012717,2]
[425112587,1781523032000,-166.66,0.00012646,2]
[425112575,1781523032000,-160.0,0.00012292,2]
[425112579,1781523032000,-4465.37095461,0.00012294,2]
[425112581,1781523032000,-228.86,0.00012351,2]
[425112577,1781523032000,-18.58373376,0.00012294,2]
[425112582,1781523032000,-244.99,0.00012386,2]
[425112580,1781523032000,-221.12,0.00012318,2]
[425112583,1781523032000,-211.0,0.00012416,2]
[425112578,1781523032000,-891.53531163,0.00012294,2]
[425112602,1781523032000,-228.86,0.00012969,2]
[425112576,1781523032000,-216.09656886,0.00012292,2]
[425112585,1781523032000,-479.45471608,0.00012541,2]
[425112584,1781523032000,-566.25,0.00012529,2]
[425112603,1781523032000,-184.22744048,0.0001312,2]
[425112606,1781523032000,-151.0,0.00013344,2]
[425112616,1781523032000,-320.0,0.00013345,2]
[425112604,1781523032000,-166.66,0.00013146,2]
[425112611,1781523032000,-150.0,0.00013344,2]
[425112615,1781523032000,-312.0,0.00013345,2]
[425112614,1781523032000,-152.0,0.00013344,2]
[425112612,1781523032000,-321.0,0.00013344,2]
[425112613,1781523032000,-320.0,0.00013344,2]
[425112609,1781523032000,-314.0,0.00013344,2]
[425112618,1781523032000,-311.0,0.00013345,2]
[425112610,1781523032000,-318.0,0.00013344,2]
[425112617,1781523032000,-314.0,0.00013345,2]
[425112607,1781523032000,-314.0,0.00013344,2]
[425112608,1781523032000,-317.0,0.00013344,2]
[425112605,1781523032000,-228.86,0.00013277,2]
[425112596,1781523032000,-500.0,0.00012828,2]
[425112598,1781523032000,-226.93308767,0.00012828,2]
[425112595,1781523032000,-500.0,0.00012828,2]
[425112597,1781523032000,-629.34377655,0.00012828,2]
[425112601,1781523032000,-242.11372023,0.000129,2]
[425112599,1781523032000,-165.24,0.0001283,2]
[425112600,1781523032000,-166.66,0.00012896,2]
[425112628,1781523033000,-317.0,0.00013345,2]
[425112631,1781523033000,-311.0,0.00013345,2]
[425112633,1781523033000,-311.0,0.00013345,2]
[425112638,1781523033000,-2427.32845469,0.00013417,2]
[425112639,1781523033000,-1137.31505543,0.00013417,2]
[425112625,1781523033000,-151.0,0.00013345,2]
[425112623,1781523033000,-313.0,0.00013345,2]
[425112619,1781523033000,-312.0,0.00013345,2]
[425112622,1781523033000,-318.0,0.00013345,2]
[425112624,1781523033000,-317.0,0.00013345,2]
[425112627,1781523033000,-317.0,0.00013345,2]
[425112621,1781523033000,-150.42328462,0.00013345,2]
[425112630,1781523033000,-151.0,0.00013345,2]
[425112629,1781523033000,-321.0,0.00013345,2]
[425112620,1781523033000,-151.0,0.00013345,2]
[425112626,1781523033000,-315.0,0.00013345,2]
[425112634,1781523033000,-152.0,0.00013345,2]
[425112640,1781523033000,-150.0,0.00013488,2]
[425112632,1781523033000,-316.0,0.00013345,2]
[425112652,1781523033000,-500.0,0.00012291,2]
[425112651,1781523033000,-280.0,0.00013517,2]
[425112653,1781523033000,-165.72995843,0.00013517,2]
[425112649,1781523033000,-13967.465508,0.00013517,2]
[425112650,1781523033000,-2108.94415124,0.00013517,2]
[425112648,1781523033000,-961.30361505,0.00013517,2]
[425112647,1781523033000,-23527.98638052,0.00013517,2]
[425112635,1781523033000,-315.0,0.00013345,2]
[425112644,1781523033000,-155.1844696,0.00013514,2]
[425112643,1781523033000,-979.14,0.0001351,2]
[425112645,1781523033000,-38697.64919636,0.00013517,2]
[425112642,1781523033000,-3609.22732989,0.00013502,2]
[425112641,1781523033000,-250.0,0.00013498,2]
[425112636,1781523033000,-184.22744048,0.00013394,2]
[425112637,1781523033000,-3906.68673343,0.00013417,2]
[425112646,1781523033000,-46724.40139636,0.00013517,2]
[425112676,1781523038000,-305.7918755,0.00012291,2]
[425112675,1781523038000,-500.0,0.00012291,2]
[425112678,1781523038000,-500.0,0.00012291,2]
[425112679,1781523038000,-416.47661758,0.00012291,2]
[425112677,1781523038000,-194.2081245,0.00012291,2]
[425112722,1781523041000,-320.0,0.00013617,2]
[425112710,1781523041000,-1049.53799999,0.00013517,2]
[425112715,1781523041000,-296.57742422,0.00013521,2]
[425112721,1781523041000,-317.0,0.00013617,2]
[425112718,1781523041000,-228.86,0.00013586,2]
[425112717,1781523041000,-2427.32845464,0.00013582,2]
[425112716,1781523041000,-3906.68673339,0.00013582,2]
[425112725,1781523041000,-313.0,0.00013617,2]
[425112719,1781523041000,-312.0,0.00013616,2]
[425112724,1781523041000,-313.0,0.00013617,2]
[425112723,1781523041000,-314.0,0.00013617,2]
[425112729,1781523041000,-312.0,0.00013617,2]
[425112726,1781523041000,-314.0,0.00013617,2]
[425112728,1781523041000,-318.0,0.00013617,2]
[425112732,1781523041000,-316.0,0.00013617,2]
[425112730,1781523041000,-311.0,0.00013617,2]
[425112711,1781523041000,-513701.11150482,0.00013517,2]
[425112733,1781523041000,-317.0,0.00013617,2]
[425112731,1781523041000,-319.0,0.00013617,2]
[425112736,1781523041000,-311.0,0.00013617,2]
[425112735,1781523041000,-313.0,0.00013617,2]
[425112734,1781523041000,-151.0,0.00013617,2]
[425112727,1781523041000,-309.0,0.00013617,2]
[425112712,1781523041000,-734.09425913,0.00013517,2]
[425112714,1781523041000,-446.90917335,0.00013521,2]
[425112704,1781523041000,-500.0,0.00012291,2]
[425112688,1781523041000,-500.0,0.00012291,2]
[425112686,1781523041000,-83.52338242,0.00012291,2]
[425112687,1781523041000,-500.0,0.00012291,2]
[425112689,1781523041000,-500.0,0.00012291,2]
[425112691,1781523041000,-500.0,0.00012291,2]
[425112690,1781523041000,-500.0,0.00012291,2]
[425112692,1781523041000,-500.0,0.00012291,2]
[425112694,1781523041000,-500.0,0.00012291,2]
[425112699,1781523041000,-500.0,0.00012291,2]
[425112698,1781523041000,-500.0,0.00012291,2]
[425112709,1781523041000,-200882.97920575,0.00013517,2]
[425112703,1781523041000,-500.0,0.00012291,2]
[425112693,1781523041000,-500.0,0.00012291,2]
[425112695,1781523041000,-500.0,0.00012291,2]
[425112701,1781523041000,-368.01630519,0.00012291,2]
[425112702,1781523041000,-500.0,0.00012291,2]
[425112697,1781523041000,-500.0,0.00012291,2]
[425112705,1781523041000,-500.0,0.00012291,2]
[425112738,1781523041000,-160.0,0.0001363,2]
[425112713,1781523041000,-389.08096662,0.00013517,2]
[425112708,1781523041000,-21458.97168348,0.00013517,2]
[425112706,1781523041000,-500.0,0.00012291,2]
[425112696,1781523041000,-500.0,0.00012291,2]
[425112737,1781523041000,-3805.76837772,0.00013622,2]
[425112720,1781523041000,-1094.88498598,0.00013616,3]
[425112745,1781523041000,-500.0,0.00013698,2]
[425112774,1781523041000,-3906.68673339,0.00013747,2]
[425112771,1781523041000,-159.73684769,0.00013699,2]
[425112777,1781523041000,-366.82,0.00013809,2]
[425112776,1781523041000,-385.68,0.00013808,2]
[425112775,1781523041000,-2427.32845464,0.00013747,2]
[425112779,1781523041000,-2427.32845464,0.00013911,2]
[425112778,1781523041000,-3906.68673339,0.00013911,2]
[425112780,1781523041000,-500.0,0.00013956,2]
[425112781,1781523041000,-501.58348356,0.0001399,2]
[425112783,1781523041000,-317.0,0.00014,2]
[425112786,1781523041000,-311.0,0.00014001,2]
[425112787,1781523041000,-313.0,0.00014005,2]
[425112785,1781523041000,-311.0,0.00014001,2]
[425112784,1781523041000,-314.0,0.00014,2]
[425112788,1781523041000,-321.0,0.00014005,2]
[425112782,1781523041000,-250.0,0.00014,2]
[425112790,1781523041000,-310.0,0.00014025,2]
[425112789,1781523041000,-321.0,0.00014025,2]
[425112792,1781523041000,-3906.68673339,0.00014076,2]
[425112793,1781523041000,-2427.32845464,0.00014076,2]
[425112794,1781523041000,-500.0,0.0001411,2]
[425112795,1781523041000,-317.0,0.00014118,2]
[425112739,1781523041000,-500.0,0.00013698,2]
[425112768,1781523041000,-507.96,0.00013698,2]
[425112773,1781523041000,-153.52286706,0.00013722,7]
[425112791,1781523041000,-311.0,0.00014025,2]
[425112770,1781523041000,-494.23544433,0.00013698,2]
[425112772,1781523041000,-2000.0,0.00013708,2]
[425112743,1781523041000,-501.67141008,0.00013698,2]
[425112741,1781523041000,-500.0,0.00013698,2]
[425112747,1781523041000,-500.0,0.00013698,2]
[425112742,1781523041000,-500.96269676,0.00013698,2]
[425112748,1781523041000,-500.0,0.00013698,2]
[425112744,1781523041000,-502.62322906,0.00013698,2]
[425112746,1781523041000,-500.0,0.00013698,2]
[425112749,1781523041000,-610.01228212,0.00013698,2]
[425112750,1781523041000,-512.35835057,0.00013698,2]
[425112762,1781523041000,-507.96,0.00013698,2]
[425112752,1781523041000,-522.19341783,0.00013698,2]
[425112740,1781523041000,-500.0,0.00013698,2]
[425112751,1781523041000,-500.0,0.00013698,2]
[425112760,1781523041000,-507.96,0.00013698,2]
[425112764,1781523041000,-507.96,0.00013698,2]
[425112757,1781523041000,-507.96,0.00013698,2]
[425112758,1781523041000,-507.96,0.00013698,2]
[425112766,1781523041000,-507.96,0.00013698,2]
[425112755,1781523041000,-536.73147534,0.00013698,2]
[425112754,1781523041000,-500.0,0.00013698,2]
[425112753,1781523041000,-500.0,0.00013698,2]
[425112756,1781523041000,-500.0,0.00013698,2]
[425112830,1781523042000,-786.46224843,0.00014705,2]
[425112831,1781523042000,-1176.50048844,0.00014705,2]
[425112824,1781523042000,-220.637198,0.0001467,2]
[425112823,1781523042000,-1137.31505537,0.00014629,2]
[425112827,1781523042000,-195.348113,0.00014693,2]
[425112828,1781523042000,-1307.5912562,0.000147,2]
[425112825,1781523042000,-7516.1,0.00014673,2]
[425112826,1781523042000,-486.146,0.00014673,2]
[425112822,1781523042000,-174.50086462,0.00014625,2]
[425112832,1781523042000,-1591.8408,0.00014705,2]
[425112836,1781523042000,-525.0,0.0001474,2]
[425112841,1781523042000,-480.42386,0.0001485,2]
[425112838,1781523042000,-410.0,0.000148,2]
[425112837,1781523042000,-350.0,0.00014766,2]
[425112833,1781523042000,-350.0,0.00014713,2]
[425112840,1781523042000,-2914.0046839,0.0001485,2]
[425112839,1781523042000,-366.82,0.00014837,2]
[425112834,1781523042000,-3906.68673339,0.00014735,2]
[425112842,1781523042000,-480.42386,0.0001485,2]
[425112850,1781523042000,-392.57213394,0.000149,2]
[425112845,1781523042000,-200.0,0.0001488,2]
[425112848,1781523042000,-4320.0,0.000149,5]
[425112829,1781523042000,-445.81032021,0.00014705,2]
[425112835,1781523042000,-2427.32845464,0.00014735,2]
[425112820,1781523042000,-2427.32845464,0.0001457,2]
[425112796,1781523042000,-168.93052197,0.00014205,2]
[425112814,1781523042000,-1023.26426878,0.00014497,2]
[425112846,1781523042000,-391.0,0.0001489,2]
[425112802,1781523042000,-507.96,0.00014317,2]
[425112797,1781523042000,-3906.68673339,0.00014241,2]
[425112799,1781523042000,-174.50086462,0.0001425,2]
[425112798,1781523042000,-2427.32845464,0.00014241,2]
[425112800,1781523042000,-751.18,0.00014282,2]
[425112801,1781523042000,-500.0,0.00014317,2]
[425112803,1781523042000,-8237.4852,0.00014318,2]
[425112807,1781523042000,-2427.32845464,0.00014406,2]
[425112805,1781523042000,-350.0,0.00014397,2]
[425112808,1781523042000,-623.1,0.00014417,2]
[425112809,1781523042000,-500.0,0.00014452,2]
[425112804,1781523042000,-2000.0,0.00014318,2]
[425112806,1781523042000,-3906.68673339,0.00014406,2]
[425112812,1781523042000,-980.587,0.00014452,2]
[425112810,1781523042000,-500.0,0.00014452,2]
[425112811,1781523042000,-500.0,0.00014452,2]
[425112813,1781523042000,-1912.33573122,0.00014497,2]
[425112817,1781523042000,-1889.0010189,0.0001457,2]
[425112815,1781523042000,-88.44213122,0.00014497,2]
[425112818,1781523042000,-943.00436812,0.0001457,2]
[425112819,1781523042000,-1074.68134637,0.0001457,2]
[425112816,1781523042000,-551.71786878,0.00014497,2]
[425112821,1781523042000,-228.62,0.00014582,2]
[425112843,1781523042000,-480.42386,0.0001486,2]
[425112851,1781523042000,-2427.32845464,0.000149,2]
[425112847,1781523042000,-152.24084378,0.000149,2]
[425112890,1781523042000,-507.96,0.00014999,2]
[425112887,1781523042000,-507.96,0.00014999,2]
[425112889,1781523042000,-507.96,0.00014999,2]
[425112892,1781523042000,-507.96,0.00014999,2]
[425112900,1781523042000,-507.96,0.00014999,2]
[425112896,1781523042000,-507.96,0.00014999,2]
[425112894,1781523042000,-507.96,0.00014999,2]